bitfinex/quotes_BTCUSD_20230111
["timestamp","ask_amount","ask_price","bid_price","bid_amount"]
[1673461316894,4.29248852,17489.0,17488.0,3.35764872]
[1673461317166,4.77704934,17489.0,17488.0,3.35764872]
[1673461317879,4.78904934,17489.0,17488.0,3.37364872]
[1673461318121,4.77704934,17489.0,17488.0,3.35764872]
[1673461318385,4.77704934,17489.0,17488.0,3.35964872]
[1673461318386,4.84504934,17489.0,17488.0,3.35964872]
[1673461318625,4.77704934,17489.0,17488.0,3.35764872]
[1673461318882,4.84504934,17489.0,17488.0,3.35964872]
[1673461319380,5.34986839,17489.0,17488.0,3.35964872]
[1673461319695,5.28186839,17489.0,17488.0,3.35764872]
[1673461319938,5.28186839,17489.0,17488.0,3.35964872]
[1673461319939,5.20672571,17489.0,17488.0,3.35964872]
[1673461320187,4.86420209,17489.0,17488.0,3.35964872]
[1673461320433,4.93220209,17489.0,17488.0,3.36164872]
[1673461320932,4.93220209,17489.0,17488.0,3.39797107]
[1673461321671,4.83220209,17489.0,17488.0,3.39797107]
[1673461322419,4.60301985,17489.0,17488.0,3.39797107]
[1673461322919,4.26041509,17489.0,17488.0,3.39797107]
[1673461323407,4.83220209,17489.0,17488.0,3.39797107]
[1673461323666,5.1748283,17489.0,17488.0,3.39797107]
[1673461325129,5.0664283,17489.0,17488.0,3.39797107]
[1673461325382,4.72380209,17489.0,17488.0,3.39797107]
[1673461326420,4.72380209,17489.0,17488.0,3.39797107]
[1673461326668,4.29564934,17489.0,17488.0,3.39797107]
[1673461326915,4.59564934,17489.0,17488.0,3.39797107]
[1673461327683,5.10046839,17489.0,17488.0,3.39797107]
[1673461328181,5.27155804,17489.0,17488.0,3.39797107]
[1673461328673,4.5237352,17489.0,17488.0,3.39397107]
[1673461328934,4.5237352,17489.0,17488.0,2.26785072]
[1673461328935,5.62214729,17489.0,17488.0,2.26785072]
[1673461329181,8.60310843,17489.0,17488.0,0.91634789]
[1673461329430,7.52553934,17489.0,17488.0,0.91634789]
[1673461329702,9.39959024,17489.0,17488.0,0.91634789]
[1673461329943,9.53259024,17489.0,17488.0,0.91634789]
[1673461330196,5.96374647,17489.0,17488.0,0.91634789]
[1673461330441,6.09974647,17489.0,17488.0,0.91634789]
[1673461330699,5.83074647,17489.0,17488.0,0.91634789]
[1673461330947,6.34476937,17489.0,17488.0,0.91634789]
[1673461331182,5.59223905,17489.0,17488.0,0.91634789]
[1673461331700,5.72823905,17489.0,17488.0,0.91634789]
[1673461332202,4.97414489,17489.0,17488.0,0.91634789]
[1673461332476,4.86514489,17489.0,17488.0,0.91634789]
[1673461332709,4.35112199,17489.0,17488.0,0.91634789]
[1673461332968,4.65112199,17489.0,17488.0,0.91634789]
[1673461333476,4.51512199,17489.0,17488.0,0.91634789]
[1673461333744,4.52712199,17489.0,17488.0,0.93034789]
[1673461334556,4.63532199,17489.0,17488.0,0.93034789]
[1673461334736,5.20271305,17489.0,17488.0,0.91634789]
[1673461334991,6.46435924,17489.0,17488.0,0.92834789]
[1673461335238,7.05025924,17489.0,17488.0,0.92834789]
[1673461335501,9.34490606,17489.0,17488.0,0.92834789]
[1673461336575,7.04525924,17489.0,17488.0,0.91634789]
[1673461336828,6.74525924,17489.0,17488.0,0.91634789]
[1673461337096,7.04525924,17489.0,17488.0,0.91634789]
[1673461337341,7.04525924,17489.0,17488.0,0.91834789]
[1673461337342,7.70023253,17489.0,17488.0,0.91834789]
[1673461337588,9.90691462,17489.0,17488.0,0.91834789]
[1673461338074,9.78838048,17489.0,17488.0,0.61530389]
[1673461338317,0.9503,17487.0,17484.0,0.04973702]
[1673461338559,0.98782174,17485.0,17484.0,0.04973702]
[1673461338827,4.44528404,17485.0,17482.0,0.687469]
[1673461339076,0.108,17483.0,17482.0,0.73655542]
[1673461339326,1.452418,17483.0,17482.0,0.05523137]
[1673461339580,1.99170831,17483.0,17482.0,0.00614495]
[1673461339823,1.88370831,17483.0,17482.0,0.00614495]
[1673461340551,1.99220831,17483.0,17482.0,0.01714495]
[1673461340792,1.99220831,17483.0,17482.0,0.00614495]
[1673461341075,1.99720831,17483.0,17482.0,0.01714495]
[1673461341838,2.29720831,17483.0,17482.0,0.01714495]
[1673461342220,2.86919231,17483.0,17482.0,0.01714495]
[1673461344923,2.329902,17483.0,17482.0,0.01714495]
[1673461345184,3.29482841,17483.0,17482.0,0.01714495]
[1673461345458,2.9609431,17483.0,17482.0,0.01714495]
[1673461345711,3.03811209,17483.0,17482.0,0.01714495]
[1673461346477,2.86664598,17483.0,17482.0,0.01714495]
[1673461347685,3.50706858,17483.0,17482.0,0.01714495]
[1673461347939,2.86664598,17483.0,17482.0,0.01714495]
[1673461349403,3.52997792,17483.0,17482.0,0.01714495]
[1673461349650,2.86664598,17483.0,17482.0,0.01714495]
[1673461351160,2.86654711,17483.0,17482.0,0.01714495]
[1673461352167,0.019762,17480.0,17478.0,0.04867907]
[1673461352411,2.45175609,17479.0,17478.0,0.04867907]
[1673461352664,2.95220609,17479.0,17478.0,0.00015]
[1673461352919,2.216795,17479.0,17478.0,0.00015]
[1673461353164,2.76599925,17479.0,17478.0,0.00015]
[1673461353411,0.3,17478.0,17476.0,0.00614499]
[1673461353669,1.82454,17477.0,17476.0,0.00614499]
[1673461353934,2.02499,17477.0,17476.0,0.00614499]
[1673461354941,2.03099,17477.0,17476.0,0.00614499]
[1673461355187,2.33099,17477.0,17476.0,0.00614499]
[1673461355680,2.22299,17477.0,17476.0,0.00614499]
[1673461355930,2.33149,17477.0,17476.0,0.00614499]
[1673461356187,2.94629944,17477.0,17476.0,0.00614499]
[1673461356427,2.94029944,17477.0,17476.0,0.00614499]
[1673461356690,2.94629944,17477.0,17476.0,0.00614499]
[1673461356941,2.94029944,17477.0,17476.0,0.00614499]
[1673461357186,0.97489574,17476.0,17472.0,0.05449238]
[1673461357433,1.93577703,17475.0,17472.0,0.05449238]
[1673461357684,1.13298998,17474.0,17472.0,0.05449238]
[1673461357934,0.572311,17473.0,17472.0,0.05449238]
[1673461358447,0.572311,17473.0,17472.0,0.0068351]
[1673461359944,1.144622,17473.0,17472.0,0.0068351]
[1673461360198,1.160622,17473.0,17472.0,0.0068351]
[1673461360438,1.70217408,17473.0,17472.0,0.0068351]
[1673461361441,1.10200612,17474.0,17472.0,0.55651647]
[1673461361704,0.57231,17474.0,17472.0,0.55651647]
[1673461362451,0.005,17473.0,17472.0,0.68051647]
[1673461362693,1.10869953,17474.0,17472.0,0.55651647]
[1673461362937,1.11269953,17474.0,17472.0,0.63451647]
[1673461363694,1.68497753,17474.0,17472.0,0.63451647]
[1673461364934,0.63093957,17473.0,17472.0,0.0848351]
[1673461365182,1.20325057,17473.0,17472.0,0.0848351]
[1673461365692,1.20325057,17473.0,17472.0,0.0068351]
[1673461365945,1.20725057,17473.0,17472.0,0.0848351]
[1673461366442,1.77956157,17473.0,17472.0,0.0848351]
[1673461366949,1.20725057,17473.0,17472.0,0.0848351]
[1673461369274,1.77956157,17473.0,17472.0,0.0848351]
[1673461372691,1.98001157,17473.0,17472.0,0.0848351]
[1673461372942,2.55232257,17473.0,17472.0,0.0848351]
[1673461373191,1.98001157,17473.0,17472.0,0.0848351]
[1673461373440,1.77956157,17473.0,17472.0,0.0848351]
[1673461373964,1.148622,17473.0,17472.0,1.0270258]
[1673461374276,0.004,17473.0,17472.0,1.55651591]
[1673461374510,0.004,17473.0,17472.0,1.25651591]
[1673461374770,0.004,17473.0,17472.0,1.82885991]
[1673461375317,0.004,17473.0,17472.0,3.00120391]
[1673461376091,0.004,17473.0,17472.0,2.2966911]
[1673461376358,0.0006417,17473.0,17472.0,2.43386899]
[1673461376623,0.0006417,17473.0,17472.0,4.03730709]
[1673461376909,0.59284936,17478.0,17472.0,4.0049623]
[1673461377193,0.81187039,17478.0,17475.0,0.1088]
[1673461377450,6e-05,17478.0,17476.0,0.59584589]
[1673461377709,6e-05,17478.0,17477.0,0.358168]
[1673461377959,6e-05,17478.0,17477.0,0.766768]
[1673461378262,6e-05,17478.0,17477.0,0.4086]
[1673461378783,6e-05,17478.0,17477.0,0.5486]
[1673461379052,6e-05,17478.0,17477.0,1.0052616]
[1673461379301,0.012418,17479.0,17477.0,2.97527991]
[1673461379573,0.012418,17479.0,17478.0,0.575568]
[1673461379836,0.012418,17479.0,17478.0,0.875568]
[1673461380106,0.012418,17479.0,17478.0,1.089547]
[1673461380579,0.61600031,17479.0,17478.0,0.3]
[1673461381100,0.61600031,17479.0,17477.0,1.76890391]
[1673461381344,0.61600031,17479.0,17477.0,1.5774136]
[1673461381593,0.61600031,17479.0,17478.0,0.139]
[1673461381857,0.61600031,17479.0,17477.0,1.5774136]
[1673461382123,0.61600031,17479.0,17478.0,0.14]
[1673461382355,0.61600031,17479.0,17477.0,1.5774136]
[1673461382603,0.73015512,17478.0,17476.0,0.3]
[1673461382882,0.73015512,17478.0,17477.0,0.139]
[1673461383099,0.51113409,17478.0,17477.0,0.139]
[1673461383596,0.51113409,17478.0,17476.0,0.62941257]
[1673461384347,1.08328809,17478.0,17477.0,0.14]
[1673461384605,1.08328809,17478.0,17474.0,0.98753987]
[1673461384858,0.21902103,17477.0,17476.0,0.14]
[1673461385123,1.14436,17477.0,17474.0,0.04801182]
[1673461385392,0.50045,17476.0,17474.0,0.04801182]
[1673461385613,0.50045,17476.0,17473.0,0.60558826]
[1673461385614,0.20045,17475.0,17473.0,0.60558826]
[1673461385858,0.21902103,17475.0,17473.0,0.60558826]
[1673461386107,0.572251,17475.0,17473.0,0.60558826]
[1673461386352,1.30044108,17475.0,17473.0,0.00015]
[1673461386598,0.87238259,17474.0,17473.0,0.00015]
[1673461386859,2.01693859,17474.0,17471.0,0.00784357]
[1673461387126,2.03550962,17474.0,17473.0,0.042]
[1673461387371,2.01693859,17474.0,17471.0,0.60155259]
[1673461387621,2.01693859,17474.0,17473.0,0.042]
[1673461387622,2.03550962,17474.0,17473.0,0.042]
[1673461387877,2.01693859,17474.0,17471.0,0.60155259]
[1673461388127,2.33550962,17474.0,17471.0,0.64355259]
[1673461388385,2.33550962,17474.0,17471.0,0.60155259]
[1673461388386,0.50045,17473.0,17471.0,0.60155259]
[1673461388658,0.3,17473.0,17471.0,0.60155259]
[1673461388898,0.20045,17472.0,17471.0,0.00784357]
[1673461389151,0.7235729,17472.0,17471.0,0.00784357]
[1673461389403,1.2959169,17472.0,17471.0,0.00784357]
[1673461389902,1.2959169,17472.0,17471.0,0.04984357]
[1673461390151,1.8682609,17472.0,17471.0,0.00784357]
[1673461390449,2.0687109,17472.0,17471.0,0.00784357]
[1673461390662,2.0687109,17472.0,17471.0,0.04984357]
[1673461390918,1.2959169,17472.0,17471.0,0.04984357]
[1673461391693,2.0687109,17472.0,17471.0,0.04984357]
[1673461392198,2.3687109,17472.0,17471.0,0.04984357]
[1673461392471,2.9410549,17472.0,17471.0,0.04984357]
[1673461392732,2.9450549,17472.0,17471.0,0.00784357]
[1673461394552,3.0530549,17472.0,17471.0,0.00784357]
[1673461396841,0.776794,17472.0,17471.0,0.24552146]
[1673461397100,0.776794,17472.0,17471.0,0.67313603]
[1673461397101,0.20445,17472.0,17471.0,0.67313603]
[1673461397368,0.004,17472.0,17471.0,0.67313603]
[1673461399343,0.20045,17472.0,17471.0,0.71513603]
[1673461399590,0.20045,17472.0,17471.0,0.00784357]
[1673461399848,0.8369331,17472.0,17471.0,0.04984357]
[1673461400592,0.8369331,17472.0,17471.0,0.00784357]
[1673461400593,1.9816211,17472.0,17471.0,0.00784357]
[1673461400843,2.2816211,17472.0,17471.0,0.04984357]
[1673461401094,2.2816211,17472.0,17471.0,0.00784357]
[1673461402085,2.2856211,17472.0,17471.0,0.00784357]
[1673461402606,2.8579651,17472.0,17471.0,0.00784357]
[1673461402861,2.8579651,17472.0,17471.0,0.00776284]
[1673461404902,0.3,17471.0,17470.0,5.92461057]
[1673461405147,1.30190298,17471.0,17470.0,5.92461057]
[1673461405396,1.87427998,17471.0,17470.0,5.87611725]
[1673461406124,2.07472998,17471.0,17470.0,5.87611725]
[1673461406609,2.07472998,17471.0,17470.0,5.91811725]
[1673461406855,1.87427998,17471.0,17470.0,5.91811725]
[1673461407343,2.07472998,17471.0,17470.0,5.91811725]
[1673461407837,1.87427998,17471.0,17470.0,5.91811725]
[1673461409368,0.55635961,17471.0,17470.0,5.91811725]
[1673461409600,1.70111361,17471.0,17470.0,5.91811725]
[1673461410867,0.55635961,17471.0,17470.0,5.91811725]
[1673461411112,0.6153075,17471.0,17470.0,5.91811725]
[1673461411369,1.7600615,17471.0,17470.0,5.91811725]
[1673461411867,1.9605115,17471.0,17470.0,5.91811725]
[1673461412136,1.7600615,17471.0,17470.0,5.91811725]
[1673461412392,1.9605115,17471.0,17470.0,5.91811725]
[1673461412640,1.7600615,17471.0,17470.0,5.91811725]
[1673461413148,1.144754,17471.0,17470.0,5.91811725]
[1673461413408,0.572377,17471.0,17470.0,5.91811725]
[1673461413667,0.572377,17471.0,17470.0,6.58356834]
[1673461414177,1.09753939,17472.0,17470.0,6.58356834]
[1673461414422,0.572377,17471.0,17470.0,6.58356834]
[1673461414673,0.572377,17471.0,17470.0,5.91811725]
[1673461414918,2.16772706,17471.0,17470.0,5.91811725]
[1673461415178,2.36817706,17471.0,17470.0,5.91811725]
[1673461415929,2.94055406,17471.0,17470.0,5.91811725]
[1673461416178,2.94055406,17471.0,17470.0,0.0488351]
[1673461417440,2.217581,17471.0,17470.0,0.0488351]
[1673461417689,2.326581,17471.0,17470.0,0.0488351]
[1673461417986,2.6464765,17471.0,17470.0,0.0488351]
[1673461418329,2.326581,17471.0,17470.0,0.0488351]
[1673461418709,2.326581,17471.0,17470.0,0.0068351]
[1673461418958,2.9429119,17471.0,17470.0,0.0488351]
[1673461419237,2.326581,17471.0,17470.0,0.0068351]
[1673461419482,2.97817445,17471.0,17470.0,0.0068351]
[1673461420026,2.67817445,17471.0,17470.0,0.24451299]
[1673461420258,1.42442045,17471.0,17470.0,0.0068351]
[1673461420513,1.42842045,17471.0,17470.0,0.0168351]
[1673461420812,1.42442045,17471.0,17470.0,0.0068351]
[1673461421026,1.42842045,17471.0,17470.0,0.0158351]
[1673461421273,1.42442045,17471.0,17470.0,0.0068351]
[1673461421536,1.42442045,17471.0,17470.0,0.0488351]
[1673461421771,1.22397045,17471.0,17470.0,0.0488351]
[1673461422023,1.42442045,17471.0,17470.0,0.0488351]
[1673461422271,1.22397045,17471.0,17470.0,0.0488351]
[1673461423024,0.572365,17472.0,17470.0,0.64308625]
[1673461423277,1.76034757,17472.0,17470.0,0.60108625]
[1673461423517,1.18798257,17472.0,17470.0,0.60108625]
[1673461423801,1.39343819,17474.0,17471.0,0.3]
[1673461424045,1.39343819,17474.0,17471.0,0.64667789]
[1673461424046,1.22269494,17474.0,17471.0,0.64667789]
[1673461424292,1.22269494,17474.0,17471.0,1.85101537]
[1673461424293,0.00015,17474.0,17471.0,1.85101537]
[1673461424624,0.6092357,17474.0,17471.0,1.444745]
[1673461425054,0.21902103,17474.0,17470.0,1.73598868]
[1673461425301,0.78491649,17473.0,17470.0,1.16360468]
[1673461426037,0.56589546,17473.0,17470.0,1.16360468]
[1673461426280,0.56589546,17473.0,17471.0,0.14]
[1673461427285,0.565808,17473.0,17471.0,0.44]
[1673461427537,0.565808,17473.0,17471.0,0.70711747]
[1673461427792,0.565808,17473.0,17471.0,0.84811747]
[1673461428549,0.74303825,17474.0,17471.0,0.84811747]
[1673461428818,1.27949454,17474.0,17471.0,1.08579536]
[1673461429062,1.85177254,17474.0,17471.0,0.84811747]
[1673461429302,0.69751292,17473.0,17471.0,0.84811747]
[1673461429824,0.69751292,17473.0,17471.0,0.70711747]
[1673461430112,0.69751292,17473.0,17471.0,0.84811747]
[1673461430113,1.26982992,17473.0,17471.0,0.84811747]
[1673461430325,1.84214092,17473.0,17471.0,0.70711747]
[1673461430578,0.69778811,17472.0,17471.0,0.141]
[1673461430898,2.34292611,17472.0,17471.0,0.141]
[1673461431169,2.14247611,17472.0,17471.0,0.141]
[1673461431398,2.34292611,17472.0,17471.0,0.141]
[1673461432236,2.34292611,17472.0,17470.0,0.05582101]
[1673461432439,2.31321936,17472.0,17471.0,0.113]
[1673461432705,2.51366936,17472.0,17471.0,0.113]
[1673461433205,2.21366936,17472.0,17470.0,0.05582101]
[1673461433503,1.84247611,17472.0,17470.0,0.19682101]
[1673461433757,1.84247611,17472.0,17470.0,0.05582101]
[1673461434018,1.84247611,17472.0,17471.0,0.113]
[1673461434267,2.21366936,17472.0,17470.0,0.05582101]
[1673461434516,1.84247611,17472.0,17470.0,0.19682101]
[1673461434778,0.20045,17471.0,17470.0,0.19682101]
[1673461435028,1.57013211,17472.0,17470.0,0.19682101]
[1673461435313,2.14249311,17472.0,17470.0,0.1478351]
[1673461435534,0.50045,17471.0,17470.0,0.0068351]
[1673461435787,1.11816755,17471.0,17470.0,0.0068351]
[1673461436085,1.11816755,17471.0,17470.0,0.1478351]
[1673461436295,0.572317,17473.0,17471.0,0.57293131]
[1673461436555,0.7123175,17473.0,17471.0,0.8106092]
[1673461436819,0.7123175,17473.0,17471.0,0.57293131]
[1673461437373,0.7123175,17473.0,17471.0,1.14530631]
[1673461437615,0.7123175,17473.0,17471.0,1.55830631]
[1673461437824,0.7123175,17473.0,17471.0,1.44530631]
[1673461438060,0.7123175,17473.0,17471.0,1.58630631]
[1673461438303,0.7123175,17473.0,17471.0,1.58621343]
[1673461438791,0.7123175,17473.0,17471.0,2.01759043]
[1673461439060,0.7123175,17473.0,17471.0,2.13059043]
[1673461439307,0.7123175,17473.0,17472.0,0.2]
[1673461439813,0.7123175,17473.0,17472.0,0.76110216]
[1673461440347,0.71122207,17475.0,17472.0,2.26395816]
[1673461440587,0.71122207,17475.0,17473.0,0.95606846]
[1673461440858,0.17074325,17476.0,17473.0,1.40788535]
[1673461441165,1.29927515,17477.0,17474.0,0.59584589]
[1673461441352,1.29927515,17477.0,17473.0,2.48342394]
[1673461441353,0.72707815,17477.0,17475.0,0.59584589]
[1673461441630,0.72707815,17477.0,17476.0,0.358168]
[1673461441915,0.01213493,17477.0,17476.0,0.23767789]
[1673461442141,0.01213493,17477.0,17476.0,0.658168]
[1673461442397,0.01213493,17477.0,17476.0,0.358168]
[1673461442653,0.01213493,17477.0,17476.0,1.172213]
[1673461442966,0.01213493,17477.0,17476.0,0.958168]
[1673461443162,0.01213493,17477.0,17476.0,1.60570251]
[1673461443423,0.01213493,17477.0,17476.0,1.38753451]
[1673461443748,0.01213493,17477.0,17476.0,0.89563451]
[1673461444212,0.01126922,17477.0,17476.0,0.89563451]
[1673461444726,0.01126922,17477.0,17476.0,0.78753451]
[1673461445010,0.01126922,17477.0,17476.0,0.64753451]
[1673461445509,0.01126922,17477.0,17476.0,1.21974751]
[1673461445744,0.73125279,17477.0,17476.0,0.78753451]
[1673461446015,0.73125279,17477.0,17476.0,0.14]
[1673461446303,0.73025279,17477.0,17475.0,0.54429623]
[1673461446527,0.73125279,17477.0,17476.0,0.14]
[1673461446806,0.73025279,17477.0,17474.0,0.1082202]
[1673461447065,1.52245382,17477.0,17476.0,0.118]
[1673461447319,1.30343279,17477.0,17476.0,0.118]
[1673461447592,2.07606279,17477.0,17476.0,0.118]
[1673461447842,2.07506279,17477.0,17473.0,0.57225568]
[1673461448105,0.51902103,17476.0,17475.0,0.14]
[1673461448364,1.474876,17476.0,17473.0,0.57225568]
[1673461448613,1.72195901,17476.0,17473.0,0.57225568]
[1673461449150,1.14975301,17476.0,17473.0,0.71125568]
[1673461449405,1.14975301,17476.0,17474.0,0.53123538]
[1673461449652,0.57853301,17476.0,17474.0,0.83123538]
[1673461450145,0.57853301,17476.0,17474.0,0.94043538]
[1673461450393,0.001,17476.0,17475.0,1.00125357]
[1673461450647,0.01126922,17477.0,17475.0,1.57349957]
[1673461450890,0.001,17476.0,17475.0,1.57349957]
[1673461451654,0.67493774,17476.0,17475.0,0.59205357]
[1673461451889,0.67493774,17476.0,17475.0,0.71105357]
[1673461452138,0.67493774,17476.0,17475.0,0.59205357]
[1673461452382,0.67593774,17476.0,17475.0,0.71105357]
[1673461454189,0.001,17476.0,17475.0,0.71105357]
[1673461456590,0.001,17476.0,17475.0,1.58329957]
[1673461456736,0.001,17476.0,17475.0,1.88329957]
[1673461456989,0.001,17476.0,17475.0,2.81371357]
[1673461457244,0.001,17476.0,17475.0,2.902806]
[1673461457506,0.001,17476.0,17475.0,2.911306]
[1673461457760,0.00014476,17476.0,17475.0,2.55239012]
[1673461458035,0.00014476,17476.0,17475.0,2.55259012]
[1673461458578,4.76e-06,17476.0,17475.0,3.72966948]
[1673461458836,0.01126922,17477.0,17476.0,0.00012594]
[1673461459116,0.01126922,17477.0,17476.0,4.1710874]
[1673461459372,0.01126922,17477.0,17476.0,4.22365964]
[1673461459620,9.22e-06,17477.0,17476.0,4.57272016]
[1673461459868,9.22e-06,17477.0,17476.0,4.57154752]
[1673461460371,9.22e-06,17477.0,17476.0,4.14772644]
[1673461460619,9.22e-06,17477.0,17476.0,4.97313651]
[1673461461183,9.22e-06,17477.0,17476.0,5.28276052]
[1673461462171,0.012418,17478.0,17477.0,5.078e-05]
[1673461462397,0.012418,17478.0,17477.0,3.07320257]
[1673461462658,0.012418,17478.0,17477.0,3.43435612]
[1673461462955,0.012418,17478.0,17477.0,2.96912191]
[1673461463414,0.012418,17478.0,17477.0,2.91646836]
[1673461463668,0.012418,17478.0,17477.0,2.54502645]
[1673461463917,0.012418,17478.0,17477.0,3.44010257]
[1673461464207,0.012418,17478.0,17477.0,3.39043311]
[1673461464691,0.012418,17478.0,17477.0,4.01753311]
[1673461464967,0.012418,17478.0,17477.0,4.58971311]
[1673461466710,0.012418,17478.0,17477.0,4.64236666]
[1673461468929,0.00125323,17478.0,17477.0,4.47363612]
[1673461469972,0.00125323,17478.0,17477.0,4.64236666]
[1673461470226,0.00125323,17478.0,17477.0,4.47363612]
[1673461471222,0.00125323,17478.0,17477.0,3.74430645]
[1673461471830,0.00125323,17478.0,17477.0,3.33510645]
[1673461473048,0.00125323,17478.0,17477.0,4.34126072]
[1673461473566,0.00125323,17478.0,17477.0,3.63510645]
[1673461473809,0.00125323,17478.0,17477.0,4.23876865]
[1673461474312,0.00125323,17478.0,17477.0,3.63510645]
[1673461476050,0.00125323,17478.0,17477.0,3.80383699]
[1673461476295,0.00125323,17478.0,17477.0,4.42692127]
[1673461476541,0.00125323,17478.0,17477.0,4.0569328]
[1673461476798,0.00125323,17478.0,17477.0,3.80383699]
[1673461477304,0.00125323,17478.0,17477.0,3.91303699]
[1673461477820,0.00438787,17480.0,17478.0,0.3]
[1673461478099,0.00438787,17480.0,17479.0,2.374513]
[1673461478352,0.00438787,17480.0,17479.0,2.892913]
[1673461478603,0.00438787,17480.0,17479.0,2.901413]
[1673461479359,0.00438787,17480.0,17479.0,3.49968173]
[1673461479626,0.00438787,17480.0,17479.0,3.014413]
[1673461479901,0.00438787,17480.0,17479.0,3.67679787]
[1673461480139,0.00438787,17480.0,17479.0,3.014413]
[1673461480391,0.00438787,17480.0,17479.0,3.6725108]
[1673461482688,0.00438787,17480.0,17479.0,3.014413]
[1673461483441,0.00438787,17480.0,17479.0,3.70998634]
[1673461485068,0.00438787,17480.0,17479.0,3.19158634]
[1673461485300,0.00438787,17480.0,17479.0,2.89158634]
[1673461485543,0.00438787,17480.0,17479.0,3.19158634]
[1673461486823,0.00438787,17480.0,17479.0,3.45309009]
[1673461487069,0.00438787,17480.0,17479.0,2.796013]
[1673461487321,0.00438787,17480.0,17479.0,2.96474354]
[1673461487841,0.00438787,17480.0,17479.0,3.55869121]
[1673461488341,0.00047798,17480.0,17479.0,4.18204976]
[1673461488593,0.00047798,17480.0,17479.0,4.3509277]
[1673461490564,0.00047798,17480.0,17479.0,4.77474878]
[1673461490809,0.00047798,17480.0,17479.0,4.3509277]
[1673461492551,0.00047798,17480.0,17479.0,4.52165297]
[1673461492806,0.00047798,17480.0,17479.0,4.29324449]
[1673461494065,0.00047798,17480.0,17479.0,5.14250875]
[1673461494595,0.00047798,17480.0,17479.0,4.29324449]
[1673461495635,0.00047798,17480.0,17479.0,3.86942341]
[1673461496625,0.00047798,17480.0,17479.0,4.37701905]
[1673461497145,0.00047798,17480.0,17479.0,4.91281371]
[1673461497916,8.224e-05,17480.0,17479.0,4.91281371]
[1673461498428,9.44e-06,17480.0,17479.0,4.91281371]
[1673461499185,9.44e-06,17480.0,17479.0,4.50361371]
[1673461499436,9.44e-06,17480.0,17479.0,3.46022341]
[1673461500709,9.44e-06,17480.0,17479.0,2.40951716]
[1673461500974,9.44e-06,17480.0,17479.0,1.96664367]
[1673461501224,9.44e-06,17480.0,17479.0,2.22100687]
[1673461501478,9.44e-06,17480.0,17479.0,2.21917587]
[1673461501996,9.44e-06,17480.0,17479.0,3.31895209]
[1673461502253,9.44e-06,17480.0,17479.0,2.98830116]
[1673461502798,9.44e-06,17480.0,17479.0,2.58581214]
[1673461503292,9.44e-06,17480.0,17479.0,2.05806821]
[1673461504335,9.44e-06,17480.0,17479.0,0.86134087]
[1673461504574,9.44e-06,17480.0,17479.0,0.1215]
[1673461505065,9.44e-06,17480.0,17479.0,0.113]
[1673461505307,1.04142161,17480.0,17479.0,0.113]
[1673461505557,0.84097161,17480.0,17479.0,0.113]
[1673461505808,0.54097161,17480.0,17479.0,0.113]
[1673461506817,0.65017161,17480.0,17479.0,0.113]
[1673461507072,0.85062161,17480.0,17479.0,0.113]
[1673461507326,0.65017161,17480.0,17479.0,0.113]
[1673461507581,0.85062161,17480.0,17479.0,0.113]
[1673461508142,0.65017161,17480.0,17479.0,0.113]
[1673461508831,0.85062161,17480.0,17479.0,0.113]
[1673461509341,0.65017161,17480.0,17479.0,0.113]
[1673461509600,0.85062161,17480.0,17479.0,0.113]
[1673461509856,0.65017161,17480.0,17479.0,0.113]
[1673461510114,0.85062161,17480.0,17479.0,0.113]
[1673461510375,0.65017161,17480.0,17479.0,0.13219242]
[1673461510619,0.85062161,17480.0,17479.0,0.13219242]
[1673461510868,0.65017161,17480.0,17479.0,0.13219242]
[1673461512126,9.44e-06,17480.0,17479.0,1.27642242]
[1673461512422,9.44e-06,17480.0,17479.0,1.94113733]
[1673461512905,9.44e-06,17480.0,17479.0,1.27642242]
[1673461513166,9.44e-06,17480.0,17479.0,1.57642242]
[1673461513427,9.44e-06,17480.0,17479.0,1.58492242]
[1673461513740,9.44e-06,17480.0,17479.0,2.68476229]
[1673461513994,9.44e-06,17480.0,17479.0,3.30605979]
[1673461514252,9.44e-06,17480.0,17479.0,4.08748638]
[1673461514511,9.44e-06,17480.0,17479.0,4.0270604]
[1673461515026,9.44e-06,17480.0,17479.0,4.25649926]
[1673461515276,9.44e-06,17480.0,17479.0,3.47478199]
[1673461516056,9.44e-06,17480.0,17479.0,3.30548976]
[1673461516328,9.44e-06,17480.0,17479.0,2.93854186]
[1673461516568,9.44e-06,17480.0,17479.0,2.73338288]
[1673461516836,9.44e-06,17480.0,17479.0,3.30549788]
[1673461517853,9.44e-06,17480.0,17479.0,2.73338288]
[1673461518373,9.44e-06,17480.0,17479.0,3.30549788]
[1673461520699,0.35716842,17481.0,17480.0,0.3]
[1673461521010,0.35716842,17481.0,17480.0,2.110832]
[1673461521210,0.35716842,17481.0,17480.0,1.452664]
[1673461521718,0.35716842,17481.0,17480.0,1.152664]
[1673461521960,0.35716842,17481.0,17480.0,1.99113571]
[1673461522202,0.35716842,17481.0,17480.0,2.03213571]
[1673461522973,0.35716842,17481.0,17480.0,1.193664]
[1673461523481,0.35716842,17481.0,17480.0,0.621582]
[1673461525001,0.12151044,17482.0,17480.0,0.621582]
[1673461525348,0.81244024,17482.0,17480.0,1.193664]
[1673461525780,0.81244024,17482.0,17480.0,1.493664]
[1673461526293,0.81244024,17482.0,17480.0,2.024746]
[1673461526542,0.81244024,17482.0,17480.0,2.62519033]
[1673461527583,0.81244024,17482.0,17480.0,2.79453696]
[1673461528354,0.11651044,17482.0,17481.0,0.3]
[1673461528607,0.11651044,17482.0,17481.0,1.444098]
[1673461528866,0.11651044,17482.0,17481.0,1.144098]
[1673461529688,0.11651044,17482.0,17481.0,1.81927321]
[1673461529938,0.00751044,17482.0,17481.0,1.81927321]
[1673461530190,0.00751044,17482.0,17481.0,2.11927321]
[1673461530456,0.00751044,17482.0,17481.0,3.80767802]
[1673461530714,0.00751044,17482.0,17481.0,4.16584602]
[1673461530985,0.00751044,17482.0,17481.0,3.80767802]
[1673461531205,0.00751044,17482.0,17481.0,3.80764588]
[1673461531461,0.00751044,17482.0,17481.0,4.16581388]
[1673461531710,0.00751044,17482.0,17481.0,3.80764588]
[1673461532246,0.00751044,17482.0,17481.0,3.16916884]
[1673461532803,0.00751044,17482.0,17481.0,2.39982221]
[1673461533349,0.00751044,17482.0,17481.0,1.82777321]
[1673461534130,0.75783475,17482.0,17481.0,0.580549]
[1673461534379,0.75783475,17482.0,17480.0,0.74141163]
[1673461534640,0.75783475,17482.0,17480.0,0.572065]
[1673461534641,0.59651475,17482.0,17480.0,0.572065]
[1673461535672,0.1092,17481.0,17480.0,0.613065]
[1673461536155,0.67404649,17481.0,17480.0,0.613065]
[1673461536406,0.67404649,17481.0,17480.0,0.572065]
[1673461536658,0.67404649,17481.0,17480.0,0.613065]
[1673461538749,0.67404649,17481.0,17480.0,0.041]
[1673461538987,0.87449649,17481.0,17480.0,0.041]